fUST/lending_fUST_20250125
["ID","MTS","AMOUNT","RATE_DAILY","PERIOD"]
[350300831,1737777038877,-500.0,0.00017979,2]
[350300833,1737777038887,-524.78,0.00017979,2]
[350300835,1737777038897,-763.33,0.00017979,2]
[350300837,1737777038906,-580.16,0.00017979,2]
[350300839,1737777038916,-500.0,0.00017979,2]
[350300841,1737777038926,-507.72,0.00017979,2]
[350300843,1737777038936,-690.79,0.00017979,2]
[350300845,1737777038946,-500.0,0.00017979,2]
[350300847,1737777038956,-2774.00518395,0.00017979,2]
[350301001,1737777040665,-1190.90589437,0.00017979,2]
[350301087,1737777043531,-1047.71961501,0.00017979,2]
[350301105,1737777105968,273.954,0.0001721,2]
[350301106,1737777295514,282.04,0.0001721,2]
[350301109,1737777322447,500.0,0.00016164,2]
[350301110,1737777386575,4114.36,0.000176,2]
[350301111,1737777453321,300.0,0.00017516,2]
[350301112,1737777473198,210.19519706,0.00017516,2]
[350301115,1737777772635,172.150585,0.00013973,2]
[350301119,1737777942313,270.129,0.0001721,2]
[350301120,1737777943204,1574.2900146,0.00017092,2]
[350301125,1737777968927,11715.23628266,0.0001759,2]
[350301126,1737777980429,899.3270016,0.00016971,2]
[350301150,1737778232888,-1000.0,0.000178,4]
[350301152,1737778232898,-398.0,0.0001796,10]
[350301154,1737778232907,-300.0,0.00017973,2]
[350301156,1737778232917,-500.0,0.00017974,2]
[350301158,1737778232926,-3438.68,0.00017974,2]
[350301160,1737778232935,-658.18,0.00017974,2]
[350301162,1737778232945,-1000.0,0.00017974,7]
[350301164,1737778232954,-626.46,0.00017974,2]
[350301166,1737778232963,-500.0,0.00017974,2]
[350301168,1737778232973,-1809.79,0.00017974,2]
[350301169,1737778232982,-500.0,0.00017974,2]
[350301170,1737778232992,-526.51,0.00017974,2]
[350301171,1737778233001,-500.0,0.00017974,2]
[350301172,1737778233010,-500.0,0.00017974,2]
[350301173,1737778233019,-500.0,0.00017974,2]
[350301174,1737778233029,-500.0,0.00017974,2]
[350301175,1737778233038,-500.0,0.00017974,2]
[350301176,1737778233048,-5026.58,0.00017974,2]
[350301177,1737778233057,-500.0,0.00017974,2]
[350301178,1737778233067,-731.53,0.00017974,2]
[350301179,1737778233077,-500.0,0.00017974,2]
[350301181,1737778233085,-8226.88,0.00017974,2]
[350301182,1737778233093,-1884.70092361,0.00017975,5]
[350301184,1737778233102,-500.0,0.00017975,2]
[350301186,1737778233111,-500.0,0.00017975,2]
[350301188,1737778233121,-3766.81,0.00017975,2]
[350301190,1737778233131,-505.54843941,0.00017975,2]
[350301192,1737778233140,-500.0,0.00017975,2]
[350301194,1737778233150,-511.0,0.00017975,2]
[350301196,1737778233159,-500.0,0.00017975,2]
[350301198,1737778233170,-500.0,0.00017975,2]
[350301200,1737778233180,-504.32808562,0.00017975,2]
[350301202,1737778233190,-500.0,0.00017975,2]
[350301204,1737778233199,-500.0,0.00017975,2]
[350301206,1737778233209,-3089.58,0.00017975,2]
[350301208,1737778233219,-500.0,0.00017975,2]
[350301210,1737778233369,-1827.8,0.00017975,2]
[350301211,1737778233379,-1121.12,0.00017975,2]
[350301212,1737778233389,-500.0,0.00017975,2]
[350301213,1737778233399,-613.44931223,0.00017975,2]
[350301214,1737778233411,-751.28068777,0.00017975,2]
[350301215,1737778233421,-500.0,0.00017975,2]
[350301216,1737778233430,-500.0,0.00017975,2]
[350301217,1737778233440,-286.23926559,0.00017975,2]
[350301218,1737778233452,-213.76073441,0.00017975,2]
[350301219,1737778233461,-500.0,0.00017975,2]
[350301220,1737778233471,-3256.18,0.00017975,2]
[350301221,1737778233481,-500.0,0.00017975,2]
[350301222,1737778233491,-1208.58,0.00017975,2]
[350301223,1737778233501,-544.51,0.00017975,2]
[350301224,1737778233510,-3486.19,0.00017975,2]
[350301225,1737778233520,-500.0,0.00017975,2]
[350301226,1737778233529,-215.01201002,0.00017975,2]
[350301227,1737778233540,-5665.99,0.00017975,2]
[350301228,1737778233549,-500.0,0.00017975,2]
[350301229,1737778233559,-500.0,0.00017975,2]
[350301230,1737778233568,-578.99,0.00017975,2]
[350301231,1737778233578,-1764.23,0.00017975,2]
[350301232,1737778233587,-4045.04,0.00017975,2]
[350301233,1737778233597,-2354.36,0.00017975,2]
[350301234,1737778233606,-500.0,0.00017975,2]
[350301235,1737778233615,-1758.47,0.00017975,2]
[350301236,1737778233625,-500.0,0.00017975,2]
[350301237,1737778233635,-960.02,0.00017975,2]
[350301238,1737778233644,-15906.88,0.00017975,2]
[350301239,1737778233654,-1787.14,0.00017975,2]
[350301240,1737778233663,-500.0,0.00017975,2]
[350301241,1737778233673,-500.0,0.00017975,2]
[350301242,1737778233683,-500.0,0.00017975,2]
[350301243,1737778233692,-500.0,0.00017975,2]
[350301244,1737778233702,-11412.99820546,0.00017975,5]
[350301245,1737778233711,-500.0,0.00017976,2]
[350301246,1737778233721,-505.08567262,0.00017976,2]
[350301247,1737778233731,-506.46732929,0.00017976,2]
[350301248,1737778233742,-500.0,0.00017976,2]
[350301249,1737778233755,-500.0,0.00017976,2]
[350301250,1737778233764,-504.71173702,0.00017976,2]
[350301251,1737778233773,-508.90202279,0.00017976,2]
[350301252,1737778233782,-500.0,0.00017976,2]
[350301253,1737778233791,-500.0,0.00017976,2]
[350301254,1737778233800,-519.72,0.00017976,2]
[350301255,1737778233809,-500.0,0.00017976,2]
[350301256,1737778233819,-500.0,0.00017976,2]
[350301257,1737778233830,-500.0,0.00017976,2]
[350301258,1737778233841,-500.0,0.00017976,2]
[350301259,1737778233850,-459.04611563,0.00017976,2]
[350301260,1737778233860,-500.0,0.00017976,2]
[350301261,1737778233870,-500.0,0.00017976,2]
[350301262,1737778233879,-500.0,0.00017976,2]
[350301263,1737778233889,-500.0,0.00017976,2]
[350301264,1737778233899,-696.65,0.00017976,2]
[350301265,1737778233909,-322.70439091,0.00017976,2]
[350301266,1737778233919,-500.0,0.00017976,2]
[350301267,1737778233929,-500.0,0.00017976,2]
[350301268,1737778233939,-500.0,0.00017976,2]
[350301269,1737778233949,-500.0,0.00017976,2]
[350301270,1737778233958,-562.58,0.00017976,2]
[350301271,1737778233968,-500.0,0.00017976,2]
[350301272,1737778233978,-500.0,0.00017976,2]
[350301273,1737778233988,-500.0,0.00017976,2]
[350301274,1737778233998,-745.1,0.00017976,2]
[350301275,1737778234008,-621.56,0.00017976,2]
[350301276,1737778234018,-511.92579448,0.00017976,2]
[350301277,1737778234029,-500.0,0.00017976,2]
[350301278,1737778234039,-634.36,0.00017976,2]
[350301279,1737778234049,-491.71424927,0.00017976,2]
[350301280,1737778234060,-1011.78,0.00017976,2]
[350301281,1737778234072,-500.0,0.00017976,2]
[350301282,1737778234082,-500.0,0.00017976,2]
[350301283,1737778234092,-500.0,0.00017976,2]
[350301284,1737778234102,-690.42,0.00017976,2]
[350301285,1737778234112,-500.0,0.00017976,2]
[350301286,1737778234122,-436.33170242,0.00017976,2]
[350301287,1737778234132,-568.18,0.00017976,2]
[350301288,1737778234143,-321.18157943,0.00017976,2]
[350301289,1737778234153,-793.66,0.00017976,2]
[350301290,1737778234163,-500.0,0.00017976,2]
[350301291,1737778234173,-500.0,0.00017976,2]
[350301292,1737778234183,-500.0,0.00017976,2]
[350301293,1737778234193,-500.0,0.00017976,2]
[350301294,1737778234203,-500.0,0.00017976,2]
[350301295,1737778234213,-500.0,0.00017976,2]
[350301296,1737778234222,-500.0,0.00017976,2]
[350301297,1737778234232,-259.41907012,0.00017976,2]
[350301298,1737778234242,-500.0,0.00017976,2]
[350301299,1737778234252,-500.0,0.00017976,2]
[350301300,1737778234262,-500.0,0.00017976,2]
[350301301,1737778234272,-713.95,0.00017976,2]
[350301302,1737778234282,-821.63,0.00017976,2]
[350301303,1737778234292,-500.0,0.00017976,2]
[350301304,1737778234301,-500.0,0.00017976,2]
[350301305,1737778234311,-500.0,0.00017976,2]
[350301306,1737778234321,-500.0,0.00017976,2]
[350301307,1737778234331,-500.0,0.00017976,2]
[350301308,1737778234341,-500.0,0.00017976,2]
[350301309,1737778234350,-102.49631676,0.00017976,2]
[350301327,1737778238872,-397.50368324,0.00017976,2]
[350301329,1737778238882,-500.0,0.00017976,2]
[350301331,1737778238891,-502.36238528,0.00017976,2]
[350301333,1737778238900,-512.67,0.00017976,2]
[350301335,1737778238909,-500.0,0.00017976,2]
[350301337,1737778238918,-500.0,0.00017976,2]
[350301339,1737778238927,-500.0,0.00017976,2]
[350301341,1737778238936,-969.3,0.00017976,2]
[350301343,1737778238946,-500.0,0.00017976,2]
[350301345,1737778238955,-789.2,0.00017976,2]
[350301347,1737778238964,-500.0,0.00017976,2]
[350301349,1737778238973,-500.0,0.00017976,2]
[350301351,1737778238983,-500.0,0.00017976,2]
[350301353,1737778238992,-500.0,0.00017976,2]
[350301355,1737778239001,-517.43354033,0.00017976,2]
[350301357,1737778239010,-500.0,0.00017976,2]
[350301359,1737778239019,-511.94851244,0.00017976,2]
[350301361,1737778239028,-523.84,0.00017976,2]
[350301363,1737778239037,-500.0,0.00017976,2]
[350301365,1737778239046,-500.0,0.00017976,2]
[350301367,1737778239056,-500.0,0.00017976,2]
[350301369,1737778239065,-500.0,0.00017976,2]
[350301371,1737778239075,-500.0,0.00017976,2]
[350301373,1737778239084,-528.23,0.00017976,2]
[350301375,1737778239093,-683.98,0.00017976,2]
[350301377,1737778239102,-500.0,0.00017976,2]
[350301379,1737778239111,-500.0,0.00017976,2]
[350301381,1737778239120,-500.0,0.00017976,2]
[350301383,1737778239129,-500.0,0.00017976,2]
[350301385,1737778239139,-500.0,0.00017976,2]
[350301387,1737778239148,-500.0,0.00017976,2]
[350301389,1737778239157,-500.0,0.00017976,2]
[350301392,1737778239167,-500.0,0.00017976,2]
[350301394,1737778239184,-500.0,0.00017976,2]
[350301396,1737778239197,-500.0,0.00017976,2]
[350301397,1737778239207,-155.55697632,0.00017976,2]
[350301398,1737778239216,-500.0,0.00017976,2]
[350301399,1737778239226,-523.13564152,0.00017976,2]
[350301400,1737778239235,-500.0,0.00017976,2]
[350301401,1737778239245,-27710.44,0.00017976,2]
[350301402,1737778239254,-500.0,0.00017976,2]
[350301403,1737778239263,-503.12473356,0.00017976,2]
[350301404,1737778239273,-1776.0,0.00017976,2]
[350301405,1737778239283,-790.11,0.00017976,2]
[350301406,1737778239292,-500.0,0.00017976,2]
[350301407,1737778239302,-616.22402181,0.00017976,2]
[350301408,1737778239311,-1430.61,0.00017976,2]
[350301409,1737778239320,-500.0,0.00017976,2]
[350301410,1737778239329,-500.0,0.00017976,2]
[350301412,1737778239339,-500.0,0.00017976,2]
[350301413,1737778239348,-500.0,0.00017976,2]
[350301415,1737778239358,-767.83,0.00017976,2]
[350301417,1737778239367,-500.0,0.00017976,2]
[350301419,1737778239377,-422.86188512,0.00017976,2]
[350301421,1737778239386,-402.63281711,0.00017976,2]
[350301423,1737778239396,-500.0,0.00017976,2]
[350301426,1737778239405,-904.14,0.00017976,2]
[350301428,1737778239415,-500.0,0.00017976,2]
[350301430,1737778239425,-500.0,0.00017976,2]
[350301432,1737778239434,-500.0,0.00017976,2]
[350301434,1737778239443,-500.0,0.00017976,2]
[350301436,1737778239453,-500.0,0.00017976,2]
[350301438,1737778239463,-500.0,0.00017976,2]
[350301440,1737778239473,-500.0,0.00017976,2]
[350301442,1737778239483,-500.0,0.00017976,2]
[350301444,1737778239492,-500.0,0.00017976,2]
[350301446,1737778239502,-626.87,0.00017976,2]
[350301448,1737778239511,-3114.34,0.00017976,2]
[350301450,1737778239521,-500.0,0.00017976,2]
[350301452,1737778239530,-500.0,0.00017976,2]
[350301454,1737778239540,-500.0,0.00017976,2]
[350301456,1737778239550,-500.0,0.00017976,2]
[350301458,1737778239560,-500.0,0.00017976,2]
[350301460,1737778239569,-500.0,0.00017976,2]
[350301462,1737778239579,-500.0,0.00017976,2]
[350301464,1737778239588,-366.61247207,0.00017976,2]
[350301466,1737778239604,-500.0,0.00017976,2]
[350301468,1737778239615,-15850.77,0.00017976,2]
[350301470,1737778239624,-500.0,0.00017976,2]
[350301492,1737778239809,-500.0,0.00017976,2]
[350301494,1737778239821,-731.6,0.00017976,2]
[350301496,1737778239830,-330.34880029,0.00017976,2]
[350301498,1737778239840,-207.67516636,0.00017976,2]
[350301500,1737778239849,-1189.07,0.00017976,2]
[350301502,1737778239859,-500.0,0.00017976,2]
[350301504,1737778239868,-500.0,0.00017976,2]
[350301506,1737778239877,-500.0,0.00017976,2]
[350301508,1737778239886,-1336.9,0.00017976,2]
[350301510,1737778239895,-500.0,0.00017976,2]
[350301512,1737778239905,-46923.44,0.00017976,2]
[350301514,1737778239914,-500.0,0.00017976,2]
[350301516,1737778239924,-500.0,0.00017976,2]
[350301518,1737778239933,-500.0,0.00017976,2]
[350301520,1737778239942,-500.0,0.00017976,2]
[350301522,1737778239951,-2660.93,0.00017976,2]
[350301524,1737778239961,-500.0,0.00017976,2]
[350301526,1737778239970,-500.0,0.00017976,2]
[350301528,1737778239980,-500.0,0.00017976,2]
[350301530,1737778239991,-513.5382037,0.00017976,2]
[350301532,1737778240000,-500.0,0.00017976,2]
[350301534,1737778240013,-500.0,0.00017976,2]
[350301536,1737778240023,-1217.58,0.00017976,2]
[350301538,1737778240033,-500.0,0.00017976,2]
[350301541,1737778240043,-502.04228408,0.00017976,2]
[350301543,1737778240053,-500.0,0.00017976,2]
[350301544,1737778240062,-509.21614044,0.00017976,2]
[350301547,1737778240072,-275.75961333,0.00017976,2]
[350301549,1737778240083,-500.0,0.00017976,2]
[350301551,1737778240093,-500.0,0.00017976,2]
[350301553,1737778240102,-500.0,0.00017976,2]
[350301555,1737778240112,-523.91799576,0.00017976,2]
[350301557,1737778240121,-507.07198359,0.00017976,2]
[350301559,1737778240131,-501.89898233,0.00017976,2]
[350301561,1737778240140,-744.48,0.00017976,2]
[350301563,1737778240149,-500.0,0.00017976,2]
[350301565,1737778240158,-583.81,0.00017976,2]
[350301567,1737778240167,-500.0,0.00017976,2]
[350301569,1737778240177,-500.0,0.00017976,2]
[350301571,1737778240186,-500.0,0.00017976,2]
[350301572,1737778240195,-508.69528929,0.00017976,2]
[350301575,1737778240205,-500.0,0.00017976,2]
[350301577,1737778240215,-509.21746881,0.00017976,2]
[350301579,1737778240224,-502.41174577,0.00017976,2]
[350301580,1737778240234,-500.0,0.00017976,2]
[350301582,1737778240244,-507.36618061,0.00017976,2]
[350301585,1737778240254,-333.30420745,0.00017976,2]
[350301587,1737778240269,-166.69579255,0.00017976,2]
[350301589,1737778240279,-500.0,0.00017976,2]
[350301591,1737778240289,-500.0,0.00017976,2]
[350301593,1737778240298,-296.02298951,0.00017976,2]
[350301596,1737778240317,-209.26499385,0.00017976,2]
[350301598,1737778240326,-500.0,0.00017976,2]
[350301600,1737778240335,-151.0,0.00017976,2]
[350301602,1737778240345,-151.0,0.00017976,2]
[350301604,1737778240354,-152.119943,0.00017976,2]
[350301606,1737778240364,-500.0,0.00017976,2]
[350301608,1737778240375,-500.0,0.00017976,2]
[350301610,1737778240385,-500.0,0.00017976,2]
[350301612,1737778240396,-500.0,0.00017976,2]
[350301614,1737778240406,-500.0,0.00017976,2]
[350301616,1737778240415,-419.6464568,0.00017976,2]
[350301618,1737778240427,-80.3535432,0.00017976,2]
[350301620,1737778240436,-500.0,0.00017976,2]
[350301622,1737778240445,-500.0,0.00017976,2]
[350301624,1737778240454,-500.0,0.00017976,2]
[350301626,1737778240463,-500.0,0.00017976,2]
[350301628,1737778240472,-651.07,0.00017976,2]
[350301630,1737778240481,-500.0,0.00017976,2]
[350301632,1737778240491,-500.0,0.00017976,2]
[350301634,1737778240501,-502.14763186,0.00017976,2]
[350301636,1737778240510,-500.0,0.00017976,2]
[350301638,1737778240520,-501.76941808,0.00017976,2]
[350301640,1737778240529,-659.41,0.00017976,2]
[350301642,1737778240540,-500.0,0.00017976,2]
[350301644,1737778240549,-500.0,0.00017976,2]
[350301647,1737778240559,-500.0,0.00017976,2]
[350301649,1737778240573,-500.0,0.00017976,2]
[350301650,1737778240583,-500.0,0.00017976,2]
[350301652,1737778240590,-500.0,0.00017976,2]
[350301654,1737778240597,-344.87096887,0.00017976,2]
[350301656,1737778240606,-500.0,0.00017976,2]
[350301658,1737778240617,-500.0,0.00017976,2]
[350301660,1737778240628,-500.0,0.00017976,2]
[350301662,1737778240638,-662.04,0.00017976,2]
[350301664,1737778240649,-500.0,0.00017976,2]
[350301667,1737778240661,-500.0,0.00017976,2]
[350301669,1737778240671,-500.0,0.00017976,2]
[350301671,1737778240680,-807.35,0.00017976,2]
[350301673,1737778240690,-188.63510036,0.00017976,2]
[350301675,1737778240699,-500.0,0.00017976,2]
[350301677,1737778240709,-500.0,0.00017976,2]
[350301679,1737778240718,-505.17,0.00017976,2]
[350301681,1737778240727,-500.0,0.00017976,2]
[350301683,1737778240737,-151.0,0.00017976,2]
[350301685,1737778240751,-151.0,0.00017976,2]
[350301687,1737778240761,-500.0,0.00017976,2]
[350301689,1737778240770,-151.0,0.00017976,2]
[350301691,1737778240780,-151.0,0.00017976,2]
[350301693,1737778240790,-151.0,0.00017976,2]
[350301695,1737778240800,-201.084262,0.00017976,2]
[350301697,1737778240809,-546.36,0.00017978,2]
[350301699,1737778240819,-500.0,0.00017978,2]
[350301701,1737778240828,-500.0,0.00017978,2]
[350301703,1737778240838,-500.0,0.00017978,2]
[350301705,1737778240847,-500.0,0.00017978,2]
[350301707,1737778240857,-500.0,0.00017978,2]
[350301709,1737778240866,-502.32509964,0.00017978,2]
[350301711,1737778240876,-500.0,0.00017978,2]
[350301713,1737778240886,-505.60383485,0.00017978,2]
[350301715,1737778240895,-1778.98,0.00017978,2]
[350301717,1737778240904,-500.0,0.00017978,2]
[350301719,1737778240913,-500.0,0.00017978,2]
[350301721,1737778240923,-500.0,0.00017978,2]
[350301723,1737778240932,-500.0,0.00017978,2]
[350301725,1737778240941,-266.57918271,0.00017978,2]
[350301728,1737778240954,-1421.57081729,0.00017978,2]
[350301730,1737778240964,-16.8669795,0.00017978,2]
[350301732,1737778240976,-483.1330205,0.00017978,2]
[350301734,1737778240985,-500.0,0.00017978,2]
[350301736,1737778240995,-500.0,0.00017978,2]
[350301738,1737778241005,-500.0,0.00017978,2]
[350301740,1737778241014,-500.0,0.00017978,2]
[350301742,1737778241024,-854.16,0.00017978,2]
[350301744,1737778241036,-794.77,0.00017978,2]
[350301746,1737778241045,-500.0,0.00017978,2]
[350301748,1737778241056,-500.0,0.00017978,2]
[350301750,1737778241065,-724.61,0.00017978,2]
[350301752,1737778241075,-500.0,0.00017978,2]
[350301754,1737778241084,-854.93,0.00017978,2]
[350301756,1737778241094,-500.0,0.00017978,2]
[350301758,1737778241104,-500.0,0.00017978,2]
[350301760,1737778241113,-500.0,0.00017978,2]
[350301762,1737778241123,-1578.38,0.00017978,2]
[350301765,1737778241132,-359.94649164,0.00017978,2]
[350301766,1737778241141,-2641.37,0.00017978,2]
[350301769,1737778241151,-500.0,0.00017978,2]
[350301771,1737778241161,-500.0,0.00017978,2]
[350301773,1737778241171,-500.0,0.00017978,2]
[350301775,1737778241180,-500.0,0.00017979,2]
[350301777,1737778241190,-500.0,0.00017979,2]
[350301779,1737778241199,-500.0,0.00017979,2]
[350301781,1737778241208,-500.0,0.00017979,2]
[350301783,1737778241217,-500.0,0.00017979,2]
[350301785,1737778241226,-500.0,0.00017979,2]
[350301787,1737778241236,-500.0,0.00017979,2]
[350301789,1737778241246,-500.0,0.00017979,2]
[350301791,1737778241255,-500.0,0.00017979,2]
[350301793,1737778241264,-448.56827828,0.00017979,2]
[350301795,1737778241275,-502.32481971,0.00017979,2]
[350301797,1737778241284,-500.0,0.00017979,2]
[350301799,1737778241293,-500.0,0.00017979,2]
[350301801,1737778241303,-500.0,0.00017979,2]
[350301803,1737778241312,-500.0,0.00017979,2]
[350301805,1737778241322,-501.69327094,0.00017979,2]
[350301807,1737778241331,-500.0,0.00017979,2]
[350301809,1737778241340,-500.0,0.00017979,2]
[350301811,1737778241349,-500.0,0.00017979,2]
[350301813,1737778241359,-504.98460337,0.00017979,2]
[350301815,1737778241368,-501.00463615,0.00017979,2]
[350301817,1737778241377,-500.0,0.00017979,2]
[350301819,1737778241387,-668.12,0.00017979,2]
[350301821,1737778241396,-500.0,0.00017979,2]
[350301823,1737778241405,-501.48295008,0.00017979,2]
[350301825,1737778241414,-501.45071982,0.00017979,2]
[350301827,1737778241423,-500.0,0.00017979,2]
[350301829,1737778241432,-500.0,0.00017979,2]
[350301831,1737778241443,-500.0,0.00017979,2]
[350301833,1737778241452,-500.0,0.00017979,2]
[350301835,1737778241461,-500.0,0.00017979,2]
[350301837,1737778241472,-500.0,0.00017979,2]
[350301839,1737778241481,-455.26610437,0.00017979,2]
[350301840,1737778241491,-500.0,0.00017979,2]
[350301841,1737778241501,-515.19138568,0.00017979,2]
[350301842,1737778241511,-596.35174067,0.00017979,2]
[350301843,1737778241520,-509.54918517,0.00017979,2]
[350301844,1737778241530,-500.0,0.00017979,2]
[350301845,1737778241539,-250.21271209,0.00017979,2]
[350301847,1737778241549,-500.0,0.00017979,2]
[350301849,1737778241558,-500.0,0.00017979,2]
[350301851,1737778241567,-500.0,0.00017979,2]
[350301852,1737778241576,-770.0,0.00017979,2]
[350301854,1737778241585,-500.0,0.00017979,2]
[350301855,1737778241594,-500.0,0.00017979,2]
[350301857,1737778241604,-500.0,0.00017979,2]
[350301859,1737778241615,-890.39,0.00017979,2]
[350301860,1737778241624,-500.0,0.00017979,2]
[350301861,1737778241635,-500.0,0.00017979,2]
[350301862,1737778241646,-611.74029909,0.00017979,2]
[350301863,1737778241655,-511.96,0.00017979,2]
[350301864,1737778241667,-500.0,0.00017979,2]
[350301865,1737778241678,-500.0,0.00017979,2]
[350301866,1737778241687,-500.0,0.00017979,2]
[350301867,1737778241697,-253.59021232,0.00017979,2]
[350301868,1737778241705,-1003.87159362,0.00017979,2]
[350301869,1737778241715,-500.0,0.00017979,2]
[350301870,1737778241727,-500.0,0.00017979,2]
[350301871,1737778241738,-500.0,0.00017979,2]
[350301872,1737778241753,-293.36167759,0.00017979,2]
[350301873,1737778241764,-500.0,0.00017979,2]
[350301874,1737778241774,-500.0,0.00017979,2]
[350301875,1737778241784,-500.0,0.00017979,2]
[350301876,1737778241796,-500.0,0.00017979,2]
[350301877,1737778241806,-500.0,0.00017979,2]
[350301878,1737778241817,-500.0,0.00017979,2]
[350301879,1737778241828,-743.79,0.00017979,2]
[350301880,1737778241837,-500.0,0.00017979,2]
[350301881,1737778241847,-500.0,0.00017979,2]
[350301882,1737778241857,-500.0,0.00017979,2]
[350301883,1737778241868,-500.0,0.00017979,2]
[350301884,1737778241879,-500.0,0.00017979,2]
[350301885,1737778241888,-500.0,0.00017979,2]
[350301886,1737778241898,-951.84,0.00017979,2]
[350301887,1737778241909,-500.0,0.00017979,2]
[350301888,1737778241918,-500.0,0.00017979,2]
[350301889,1737778241928,-500.0,0.00017979,2]
[350301890,1737778241939,-504.0841775,0.00017979,2]
[350301891,1737778241950,-500.0,0.00017979,2]
[350301892,1737778241959,-500.0,0.00017979,2]
[350301893,1737778241968,-500.0,0.00017979,2]
[350301894,1737778241978,-500.0,0.00017979,2]
[350301895,1737778241987,-500.0,0.0001798,2]
[350301896,1737778241997,-500.0,0.0001798,2]
[350301897,1737778242006,-500.0,0.0001798,2]
[350301898,1737778242015,-327.82679629,0.0001798,2]
[350301899,1737778242025,-500.0,0.00017981,2]
[350301900,1737778242034,-501.57223775,0.00017981,2]
[350301901,1737778242043,-500.0,0.00017981,2]
[350301902,1737778242053,-500.0,0.00017981,2]
[350301903,1737778242063,-500.0,0.00017981,2]
[350301904,1737778242073,-505.22659083,0.00017981,2]
[350301905,1737778242083,-218.53171221,0.00017981,2]
[350301906,1737778242462,-151.0,0.00017976,2]
[350301907,1737778242473,-294.26873369,0.00017976,2]
[350301908,1737778242482,-151.0,0.00017976,2]
[350301909,1737778242491,-151.0,0.00017978,2]
[350301910,1737778242501,-151.0,0.00017979,2]
[350301911,1737778242512,-283.25890935,0.00017981,2]
[350301912,1737778242522,-141.56606191,0.00017981,2]
[350301913,1737778242540,-54.7796695,0.00017981,2]
[350301914,1737778242551,-500.0,0.00017981,2]
[350301915,1737778242561,-299.999999,0.00018,2]
[350301916,1737778242571,-2035.82265064,0.00018,2]
[350301917,1737778242656,-304.23979383,0.00018,2]
[350301918,1737778242667,-5098.63508831,0.00018,2]
[350301919,1737778242677,-296.8363382,0.00018,2]
[350301920,1737778242686,-500.0,0.00018111,2]
[350301921,1737778242695,-3438.68,0.00018111,2]
[350301922,1737778242704,-658.18,0.00018111,2]
[350301923,1737778242714,-1000.0,0.00018111,7]
[350301924,1737778242723,-626.46,0.00018111,2]
[350301925,1737778242732,-500.0,0.00018111,2]
[350301926,1737778242745,-1809.79,0.00018111,2]
[350301927,1737778242757,-500.0,0.00018111,2]
[350301928,1737778242767,-526.51,0.00018111,2]
[350301929,1737778242777,-500.0,0.00018111,2]
[350301930,1737778242788,-500.0,0.00018111,2]
[350301931,1737778242798,-500.0,0.00018111,2]
[350301932,1737778242807,-5026.58,0.00018111,2]
[350301933,1737778242817,-500.0,0.00018111,2]
[350301934,1737778242829,-731.53,0.00018111,2]
[350301935,1737778242839,-500.0,0.00018111,2]
[350301936,1737778242848,-8226.88,0.00018111,2]